{"text_format":"1","workbook":"xlsx","n_sheets":3,"sheets":["Sheet1","Sheet2","Sheet3"],"not_rendered":{"charts":0,"images":0,"macros":1,"external_links":0,"defined_names":0,"comments":0,"pivot_tables":0},"unopened":[],"bounds":{"document_bytes":16777216,"sheet_cells":100000,"rows_first":2000,"rows_last":500,"rows_between":2000,"halvings":0,"cell_chars":16384,"cell_head_chars":4096},"cells_cut":0,"cells_raw":0,"read":"whole","date_system":"1900"}

{"sheet":"Sheet1","index":0,"n_rows":30,"n_cols":36,"rows_kept":30,"cut":false,"hidden":false,"merged":[[0,0,0,35]]}
["Demo for Linear Transformation and Coordinate Rotation, Especially related to 2DPC with up to 14 Diagonals\nTsung-Chu Huang, NCUE Taiwan, 2014/10/10"]
["x \\ y",null,null,null,null,null,null,null,null,null,null,null,null,null,null,null,null,null,null,null,"i \\ j",0,{"$f":"V2+1","v":1},{"$f":"W2+1","v":2},3,4,5,6,7,8,9,10,11,12,13,14]
[0,null,null,null,null,null,null,null,null,null,null,null,null,null,null,null,null,null,"i=ax+by",null,0]
[{"$f":"A3+1","v":1},null,null,null,null,null,null,null,null,null,null,null,null,null,null,null,null,null,"j=cx+dy",null,{"$f":"U3+1","v":1}]
[{"$f":"A4+1","v":2},null,null,null,null,null,null,null,null,null,null,null,null,null,null,null,null,null,null,null,{"$f":"U4+1","v":2}]
[3,null,null,null,null,null,null,null,null,null,null,null,null,null,null,null,null,null,null,null,3]
[4,null,null,null,null,null,null,null,null,null,null,null,null,null,null,null,null,"a=",5,null,4]
[5,null,null,null,null,null,null,null,null,null,null,null,null,null,null,null,null,"b=",1,null,5]
[6,null,null,null,null,null,null,null,null,null,null,null,null,null,null,null,null,"c=",4,null,6]
[7,null,null,null,null,null,null,null,null,null,null,null,null,null,null,null,null,"d=",1,null,7]
[8,null,null,null,null,null,null,null,null,null,null,null,null,null,null,null,null,null,null,null,8]
[9,null,null,null,null,null,null,null,null,null,null,null,null,null,null,null,null,"Block:",null,null,9]
[10,null,null,null,null,null,null,null,null,null,null,null,null,null,null,null,null,"x=",3,null,10]
[11,null,null,null,null,null,null,null,null,null,null,null,null,null,null,null,null,"y=",3,null,11]
[12,null,null,null,null,null,null,null,null,null,null,null,null,null,null,null,null,"w=",4,null,12]
[13,null,null,null,null,null,null,null,null,null,null,null,null,null,null,null,null,"h=",3,null,13]
[14,null,null,null,null,null,null,null,null,null,null,null,null,null,null,null,null,null,null,null,14]
["Macros: ^All-block ^Block ^Clear ^Diagonal again",null,null,null,null,null,null,null,null,null,null,null,null,null,null,null,null,null,null,null,null,"^Erase ^Full-screen ([Esc] to normal) ^Mapping ^Play"]
[]
[]
[]
[]
[]
[]
[]
[]
[]
[]
[]
[5,0,0]

{"sheet":"Sheet2","index":1,"n_rows":0,"n_cols":0,"rows_kept":0,"cut":false,"hidden":false,"merged":[]}

{"sheet":"Sheet3","index":2,"n_rows":0,"n_cols":0,"rows_kept":0,"cut":false,"hidden":false,"merged":[]}